Cogmind - Beta 10.2 @@@ ROGUE MODE // 2022.01.28 @ 18:02:44 Player: Jezoensis Result: Destroyed by D-53 Grenadier with Mini Grenade Launcher Performance ------------- Evolutions (0) 0 Regions Visited (2) 400 Robots Destroyed (18) 90 Value Destroyed (345) 345 Prototype IDs (0) 0 Alien Tech Used (0) 0 Bonus (0) 0 TOTAL SCORE: 835 Bonus ------- None Cogmind --------- Core Integrity 0/250 Matter 255/300 Energy 63/100 System Corruption 2% Temperature Cool (3) Movement Treading (160) Location -10/Mines Parts ------- > --- POWER (1) -------- (None) > --- PROPULSION (2) --- Light Treads Light Treads > --- UTILITY (2) ------ Medium Storage Unit > --- WEAPON (2) ------- Medium Laser > --- INVENTORY (8) ---- Improved Terrain Scanner Improved Terrain Scanner Terrain Scan Processor Mining Laser Peak State ------------ > --- POWER ------------ Ion Engine > --- PROPULSION ------- Light Treads Light Treads > --- UTILITY ---------- Medium Storage Unit Hacking Suite > --- WEAPON ----------- EM Pulse Gun EM Pulse Gun > --- INVENTORY -------- Light Treads Improved Terrain Scanner Improved Terrain Scanner Medium Laser Small Laser Light Cannon Light Cannon Mining Laser [Rating: 10] Favorites ----------- Power Ion Engine Engine Ion Engine Propulsion Light Treads Treads Light Treads Utility Medium Storage Unit Device Improved Terrain Scanner Storage Medium Storage Unit Hackware Hacking Suite Weapon EM Pulse Gun Energy Gun EM Pulse Gun Ballistic Cannon Light Cannon Special Weapon Mining Laser Build | -11 -10 -10 ------- Run | Scr Mat Min Slots Evolved . | . . . Power . | . . . Propulsion . | . . . Utility . | . . . Weapon . | . . . Parts Attached 23 | 7 8 8 Power 2 | 1 1 . Engine 2 | 1 1 . Core . | . . . Reactor . | . . . Propulsion 5 | 2 . 3 Treads 5 | 2 . 3 Leg . | . . . Wheel . | . . . Hover . | . . . Flight . | . . . Utility 6 | 2 3 1 Device 3 | 1 1 1 Storage 2 | 1 1 . Processor . | . . . Hackware 1 | . 1 . Protection . | . . . Artifact . | . . . Weapon 10 | 2 4 4 Energy Gun 6 | 2 2 2 Energy Cannon . | . . . Ballistic Gun . | . . . Ballistic Cannon 2 | . . 2 Launcher . | . . . Special Weapon 2 | . 2 . Impact Weapon . | . . . Slashing Weapon . | . . . Piercing Weapon . | . . . Special Melee Weapon . | . . . Unidentified Prototypes . | . . . Parts Lost 8 | . . 8 Power 1 | . . 1 Propulsion 2 | . . 2 Utility 1 | . . 1 Weapon 4 | . . 4 Highest Loss Streak 7 | . . 7 Average Slot Usage (%) 99 | . 100 98 Engine 13 | . 14 13 Treads 27 | . 28 27 Device 9 | . 7 13 Storage 14 | . 14 14 Hackware 4 | . 7 . Energy Gun 20 | . 26 13 Ballistic Cannon 6 | . . 14 Special Weapon 1 | . 1 . Naked Turns . | . . . Heaviest Build 20 | 12 18 20 Greatest Support 40 | 40 40 40 Greatest Overweight (x) . | . . . Average Overweight (x) . | . . . Largest Inventory Capacity 8 | 6 8 8 Average Capacity 7 | 5 7 8 Most Carried 8 | 4 8 8 Average Carried 6 | 2 6 7 Final Capacity 8 | 6 8 8 Final Carried 7 | 4 7 4 Class Distribution -------------------- 84% | Mutant 15% | Scavenger-Mutant Dominant Class ---------------- Mutant | -10/Materials Mutant | -10/Mines Resources | -11 -10 -10 ----------- Run | Scr Mat Min Matter Collected 414 | 270 80 64 Remotely . | . . . Salvage Created 614 | 166 346 102 Parts 42 | 12 24 6 Haulers Intercepted 2 | . 2 . Recyclers Shooed . | . . . Parts Field Recycled . | . . . Retrieved Matter . | . . . Parts Self-Destructed . | . . . Prevented . | . . . Kills | -11 -10 -10 ------- Run | Scr Mat Min Combat Hostiles Destroyed 8 | . 6 2 Guns 5 | . 5 . Cannons 2 | . . 2 AOE 1 | . 1 . Classes Destroyed 8 | 2 5 1 Builder 1 | . . 1 Tunneler 4 | 4 . . Hauler 2 | . 2 . Recycler 1 | 1 . . Operator 1 | . 1 . Watcher 1 | . 1 . Swarmer 2 | . 2 . Grunt 6 | . 4 2 Best Kill Streak 5 | 5 3 2 Combat Bots Only 2 | . 2 2 Max Kills in Single Turn 2 | 1 2 1 Gunslinging 1 | . 1 . Exploded 1 | . 1 . Melee . | . . . Uniques/NPCs Destroyed . | . . . Combat | -11 -10 -10 -------- Run | Scr Mat Min Damage Taken 1151 | . 143 1008 Core 258 | . 26 232 Absorbed by Shields . | . . . Core Remaining (%) 100 | 100 . . Volleys Fired 45 | 9 22 14 Largest 2 | 2 2 2 Hottest 100 | 80 100 85 Shots Fired 85 | 18 39 28 Gun 65 | 18 35 12 Cannon 16 | . . 16 Launcher . | . . . Special 4 | . 4 . Kinetic 16 | . . 16 Thermal 5 | . 4 1 Explosive . | . . . Electromagnetic 64 | 18 35 11 Robot Hit Streak 12 | 6 10 12 Robot Miss Streak 2 | 1 2 1 Penetration Max . | . . . Secondary Targets 1 | . 1 . Max Gunslinging Chain 1 | . 1 . Shots Hit Robots 57 | 12 24 21 Core Hits 25 | 6 12 7 Critical Hits . | . . . Critical Kills . | . . . Critical Parts Destroyed . | . . . Melee Attacks . | . . . Impact . | . . . Slashing . | . . . Piercing . | . . . Sneak Attacks . | . . . Combat Hostiles . | . . . Follow-up Attacks . | . . . Damage Inflicted 980 | 142 384 454 Guns 631 | 142 340 149 Cannons 207 | . . 207 Explosions 132 | . 40 92 Melee . | . . . Ramming 10 | . 4 6 Kinetic 207 | . . 207 Thermal 145 | . 40 105 Explosive . | . . . Electromagnetic 618 | 142 340 136 Impact . | . . . Slashing . | . . . Piercing . | . . . Highest Corruption 2 | . 2 2 Average Corruption 2 | . 2 2 Corruption Purged . | . . . Effects 4 | . 2 2 Heat Flow Errors 1 | . . 1 Energy Discharges 1 | . . 1 Targeting Errors 2 | . 2 . Overload Shots . | . . . Overflow Damage . | . . . Projectiles . | . . . Explosions . | . . . Melee . | . . . Knockbacks 3 | . . 3 Impact . | . . . Kinetic 3 | . . 3 Secondary . | . . . Self-Inflicted Damage 56 | . . 56 Shots 1 | . . 1 Rammed 1 | . . 1 Targets Rammed 2 | . 1 1 Kicked . | . . . Crushed 1 | . 1 . Highest Temperature 151 | 88 120 151 Average Temperature 41 | 40 31 63 Received Heat Transfer 132 | . 72 60 Siege Activations . | . . . Robots Corrupted . | . . . Combat Hostiles . | . . . Parts Fried 4 | 1 3 . Impact Corruptions . | . . . Robots Melted . | . . . Combat Hostiles . | . . . Parts Melted . | . . . Heat Transferred 137 | . . 137 Parts Sabotaged . | . . . Parts Stolen . | . . . Parts Stripped . | . . . Power Chain Reactions 2 | . 1 1 Missiles Intercepted . | . . . Alert | -11 -10 -10 ------- Run | Scr Mat Min Peak Influence 116 | 25 116 70 Initial 16 | . 16 8 Average 58 | 10 65 62 Maximum Alert Level . | . . . Low Security (%) 100 | 100 100 100 Level 1 . | . . . Level 2 . | . . . Level 3 . | . . . Level 4 . | . . . Level 5 . | . . . High Security . | . . . Max Security . | . . . Squads Dispatched 1 | . 1 . Investigation . | . . . Extermination . | . . . Reinforcement 1 | . 1 . Assault . | . . . Garrison . | . . . Intercept . | . . . Construction Impeded . | . . . Haulers Reinforced . | . . . Stealth | -11 -10 -10 --------- Run | Scr Mat Min Distress Signals . | . . . Communications Jammed . | . . . Distress Signals . | . . . Times Spotted 20 | . 14 6 Peak Tracking Total 5 | . 5 4 Tactical Retreats 1 | . . 1 Traps | -11 -10 -10 ------- Run | Scr Mat Min Traps Triggered 1 | . 1 . Indirectly . | . . . Trap Hack Attempts . | . . . Triggered . | . . . Disarmed . | . . . Reprogrammed . | . . . Reused . | . . . Traps Extracted . | . . . Installed . | . . . Triggered . | . . . Machines | -11 -10 -10 ---------- Run | Scr Mat Min Machines Disabled 2 | . 2 . Max in Single Turn 1 | . 1 . Machines Sabotaged . | . . . Garrisons Compromised . | . . . Overloaded Fab Kills . | . . . Fab Network Shutdowns . | . . . Hacking | -11 -10 -10 --------- Run | Scr Mat Min Machines Accessed 6 | . 6 . Terminals 6 | . 6 . Fabricators . | . . . Repair Stations . | . . . Recycling Units . | . . . Scanalyzers . | . . . Garrison Access . | . . . Total Hacks 22 | . 22 . Successful 12 | . 12 . Failed 10 | . 10 . Catastrophic . | . . . Database Lockouts . | . . . Manual 15 | . 15 . Terminals 22 | . 22 . Fabricators . | . . . Repair Stations . | . . . Recycling Units . | . . . Scanalyzers . | . . . Garrison Access . | . . . Terminal Hacks 7 | . 7 . Robot Analysis 3 | . 3 . Terminal Index 1 | . 1 . Unreport Threat 1 | . 1 . Locate Traps 1 | . 1 . Zone Layout 1 | . 1 . Fabricator Hacks . | . . . Repair Station Hacks . | . . . Recycling Unit Hacks . | . . . Scanalyzer . | . . . Garrison Access Hacks . | . . . Unauthorized Hacks 5 | . 5 . Terminals 5 | . 5 . Track 3 | . 3 . Botnet 1 | . 1 . Operators 1 | . 1 . Fabricators . | . . . Repair Stations . | . . . Recycling Units . | . . . Scanalyzers . | . . . Garrison Access . | . . . Data Cores Recovered 1 | . 1 . Used 1 | . 1 . Hacking Detections 6 | . 6 . Full Trace Events . | . . . Feedback Events . | . . . Feedback Blocked . | . . . Robot Schematics Acquired . | . . . Robots Built . | . . . Matter . | . . . Time . | . . . Total Robot Build Rating . | . . . Part Schematics Acquired . | . . . Parts Built . | . . . Matter . | . . . Time . | . . . Total Part Build Rating . | . . . Parts Repaired . | . . . Time . | . . . Parts Recycled . | . . . Recycled Matter . | . . . Retrieved Matter . | . . . Retrieved Components . | . . . Parts Scanalyzed . | . . . Part Schematics Acquired . | . . . Parts Damaged . | . . . Bothacking | -11 -10 -10 ------------ Run | Scr Mat Min Used RIF Installer . | . . . Robots Hacked . | . . . Non-combat . | . . . Combat . | . . . Robot Hacks Applied . | . . . Relay Couplers Released . | . . . Robots Rewired . | . . . Allies Hacked . | . . . Hacks Repelled . | . . . Allies | -11 -10 -10 -------- Run | Scr Mat Min Total Allies . | . . . Largest Group . | . . . Highest-Rated Group . | . . . Highest-Rated Ally . | . . . Total Orders . | . . . Ally Attacks . | . . . Total Damage . | . . . Kills . | . . . Allies Corrupted . | . . . Allies Melted . | . . . Intel | -11 -10 -10 ------- Run | Scr Mat Min Robot Analysis Total 3 | . 3 . Derelict Logs Recovered . | . . . Drone Launches . | . . . Drone Recoveries . | . . . Exploration | -11 -10 -10 ------------- Run | Scr Mat Min Turns Passed 830 | 92 440 298 Spaces Moved 408 | 40 216 152 Core 13 | 13 . . Treads 395 | 27 216 152 Legs . | . . . Wheels . | . . . Hover . | . . . Flight . | . . . Fastest Speed 50 | 50 160 160 Average Speed 156 | 124 160 160 Slowest Speed 160 | 160 160 160 Overloaded Moves . | . . . Propulsion Burnouts . | . . . Robots Hopped . | . . . Cave-ins Triggered . | . . . Exploration Rate (%) 31 | 4 58 33 Regions Visited 2 Branch Regions 1 Pre-discovered Areas . | . . . Known Exits Taken . | . . . Unknown Exits Taken 2 | 1 1 . Scrap Searched 1 | . . 1 Spaces Dug 4 | . 4 . Terrain Destroyed 12 | . 6 6 Melee . | . . . Projectile 4 | . 4 . AOE 8 | . 2 6 Terrain Rammed . | . . . Walls Destroyed . | . . . Machines Disabled . | . . . Actions | -11 -10 -10 --------- Run | Scr Mat Min Total 504 | 62 263 179 Wait 4 | . 4 . Move 406 | 39 215 152 Hop . | . . . Pick Up 17 | 7 7 3 Fast Attach 4 | 4 . . Attach 10 | 3 1 6 Detach 1 | . 1 . Swap 9 | . 7 2 Drop 6 | . 5 1 Fire 45 | 9 22 14 Melee . | . . . Ram . | . . . Kick . | . . . Crush 2 | . 1 1 Escape Stasis . | . . . Rewire . | . . . Trap . | . . . Miscellaneous . | . . . Route ------- -11/Scrapyard -10/Materials (discovered 2 exits: [*Mat] / [*Min]) -10/Mines History --------- Turn | Location | Event 5 | -11/Scrapyard | Discovered new exit (range 16) 93 | -11/Scrapyard | Entered Materials 142 | -10/Materials | Discovered new exit (range 15) 316 | -10/Materials | Build established: Mutant 365 | -10/Materials | Discovered new exit (range 6) 533 | -10/Materials | Entered Mines 777 | -10/Mines | Assembled infested the area 782 | -10/Mines | Assisted by a Guerilla fighting off Assembled 812 | -10/Mines | Core integrity fell below 50% 830 | -10/Mines | Core integrity fell below 20% 831 | -10/Mines | Destroyed by D-53 Grenadier with Mini Grenade Launcher Last Messages --------------- 00797_ 5W-BZX(h) destroyed. 00806_ Acquired 20 matter. 00809_ Acquired 8 matter. 00809_ K-01 Serf destroyed. 00811_ D-53 Grenadier knocked back. 00813_ The unstable cave ceiling collapses. 00813_ U-05 Engineer destroyed. 00819_ The unstable cave ceiling collapses. 00819_ Heat Sink destroyed. 00819_ Lgt. Treads destroyed. 00820_ The unstable cave ceiling collapses. 00821_ D-53 Grenadier knocked back. 00823_ Lgt. Cannon destroyed. 00823_ K-01 Serf destroyed. 00823_ D-53 Grenadier system corrupted by crushing effect. 00825_ Ion Engine destroyed. 00827_ EM Pulse Gun destroyed. 00827_ Lgt. Treads destroyed. 00829_ The unstable cave ceiling collapses. 00831_ Lgt. Cannon destroyed. Map ----- +----------------------------------------------------+ | | | | | | | ?????????????????????????????????????????????????? | | ?????????????????????????????????????????????????? | | ?????????????????????????????????????????????????? | | ?????????????????????????????????????????????????? | | ?????????????????????????????????????????????????? | | ?????????????????????????????????????????????????? | | ?????????????????????????????????????????????????? | | ?????????????????????????????????????????????????? | | ????????????????????????????????????????????????#? | | ??????????????????????????????????????????????#??? | | ?????????????????????????????????????????????????? | | ?????????????????????????????????????????????????? | | ????????????????????????????#????????????????????? | | ?????????????????????????#???????????????????????? | | ???????????????????#???????????????????#########?? | | ??????????????????#?????????????#????### ## ##? | | ?????????????????????????####????#???# ## | | ??????????????????????#### ##???????# # | | ????????????????????### #???????# ## | | ????????????????????## ##?????### #### | | ??????????????? ????# #???????# ### | | ?????????? ### #???##?## ## # | | ?????????? # @ #???#??## # # | | ?????????????? ??# ##?????# """ # | | ??????????? ######## ## """ # | | ??????????? # t% ### """ # | | ??????????? ##u ################ | | ????????????# aa d ### ##????????#???## | | ???????????? d ?## #???#?????????# | | ???????????? ##?## #????????#????## | | ???????????? u #???# % #?###??????????## | | ????????????? #????# #?????????#?##??# # | | ?????????????### %?????## ##????????#?#???# # | | ???????????????# ??????## % ###???#??????#?# # | | ?????????????#??????? ?## ############### # | | ???????????????????????## t ### # | | ???????????????????????### ## # | | ????????????????????#??#### ## [######### ## | | ?????????????????????????### ###% #??????## #? | | ???????????????????????????## ##?# #???????# #? | | ????????????????????????????## #?## #???????# ## | | ??????????????????????#??????# ##?# #??????## #? | | ??????????????????????????#??# #### #?????## ## | | ????????????????? ?? ?? ???# #????## | | ?????????????????????????????#### ##???#!! | | ????????????????????????????????## ##??##*% = | | ????????????????????????????????#### #### """" | +----------------------------------------------------+ Best States ------------- Heat Dissipation 35 Energy Generation 10 Energy Capacity 250 Matter Stores 300 Matter Capacity 300 Sight Range 16 Terrain Scan Range 16 Terrain Scan Density 10 Evasion (%) 40 Recoil Reduction 2 Offensive Hacking 10 Item Schematics ----------------- None Robot Schematics ------------------ None Fabricated ------------ Nothing Alien Tech Used ----------------- None Achievements -------------- None Challenges ------------ None Game ------ Seed SniperMatterBoomstick Manual? 0 Play Time 00:13:00 Cumulative 501.2 hours Start 2022.01.28 @ 17:52:34 End 2022.01.28 @ 18:02:44 Sessions 1 Manual Loads 0 Difficulty Rogue Special Mode None Game No. 243 Rogue 116 Adventurer 125 Explorer 2 Win Type - Total 44 Types 37/3/2/0/1/0/0/0/1 Lore% 65 Gallery% 85 Achievement% 66 Wizard Run 0 Options --------- ASCII 0 Keyboard 1 Movement Numpad Keybinds 0 Fullscreen 1 Font 36/TerminusFine Map View 76x50 Tactical HUD 1 Map Filters NONE Filters NONE Steam 1 RUN: a21307e9-1b30-424b-9f8e-353ccd8b5b15